[Event "Rapid Shavuot-A 2023"]
[Site "Ramat Gan"]
[Date "2023.05.25"]
[Round "5.2"]
[White "Veinberg, Nimrod"]
[Black "Iliaguev, Nisim"]
[Result "1-0"]
[ECO "A67"]
[WhiteElo "2410"]
[BlackElo "2402"]
[Annotator "TA"]
[PlyCount "57"]
[EventDate "2023.05.19"]
[EventType "swiss"]
[EventCountry "ISR"]
[SourceTitle "playchess.com"]
[Source "ChessBase"]
[SourceQuality "1"]
[TimeControl "900+5"]

{[%evp 22,57,76,81,177,176,183,175,180,164,332,356,322,361,511,496,487,494,686,668,1375,1362,1220,1154,29985,29985,29991,29992,29993,29994,29994,29995,29995,29992,29996,29997,29998,29999]} 1. d4 {[%emt 0:00:01]} Nf6 {[%emt 0:00:02]} 2. c4 {[%emt 0:00:01]} c5 {[%emt 0:00:10]} 3. d5 {[%emt 0:00:02]} e6 {[%emt 0:00:01]} 4. Nc3 {[%emt 0:00:01]} exd5 {[%emt 0:00:01]} 5. cxd5 {[%emt 0:00:01]} d6 {[%emt 0:00:01]} 6. e4 {[%emt 0:00:02]} g6 {[%emt 0:00:01]} 7. f4 {[%emt 0:00:01]} Bg7 {[%emt 0:00:00]} 8. Bb5+ {[%emt 0:00:01]} Nfd7 {[%emt 0:00:01]} 9. a4 {[%emt 0:00:01]} O-O {[%emt 0:00:03]} 10. Nf3 {[%emt 0:00:00]} a6 {[%emt 0:00:17]} 11. Be2 {[%emt 0:00:02]} Re8 {[%emt 0:00:12]} 12. O-O {[%emt 0:00:04]} Nf6 {[%emt 0:01:26] A67: Modern Benoni: Taimanov Variation.} (12... Nf8 $16) 13. e5 $18 {[%emt 0:01:38]} dxe5 {[%emt 0:00:24]} 14. fxe5 {[%emt 0:00:43]} Ng4 {[%emt 0:00:05] White is clearly better.} 15. Bg5 {[%emt 0:02:47] [#]} Qd7 $146 {[%emt 0:02:20] [#]} (15... f6) ({Predecessor:} 15... f6 16. exf6 Bxf6 17. Qd2 Bf5 18. Bf4 Nd7 19. h3 Nge5 20. g4 Nxf3+ 21. Bxf3 g5 {1-0 Koziak,V (2515)-Tarleva,V (2149) Mukachevo Summer op 2012 (1)}) 16. e6 $1 {[%emt 0:03:28][%mdl 512]} fxe6 {[%emt 0:00:05]} 17. Bc4 {[%emt 0:00:05]} h6 {[%emt 0:00:56]} (17... Qc7 $142 18. Qe2 Ne5 19. Nxe5 Qxe5) 18. h3 {[%emt 0:00:50]} hxg5 {[%emt 0:02:23]} 19. hxg4 {[%emt 0:00:02]} Qd6 {[%emt 0:01:39]} 20. Ne4 {[%emt 0:01:30]} Qf4 {[%emt 0:00:01]} 21. Nfxg5 {[%emt 0:00:12] A dynamic duo of knights.} Qe3+ {[%emt 0:02:39]} 22. Kh1 {[%emt 0:00:03][%cal Rd5e6]} Nd7 {[%emt 0:00:19]} 23. dxe6 {[%emt 0:02:45] White mates.} Nb6 {[%emt 0:01:27]} 24. e7+ {[%emt 0:00:03]} Nxc4 {[%emt 0:00:36]} 25. Qd5+ {[%emt 0:00:01]} Kh8 {[%emt 0:00:08]} 26. Rf8+ {[%emt 0:01:34][%mdl 64] [#] Decoy, Promotion} Rxf8 {[%emt 0:01:04]} 27. exf8=Q+ {[%emt 0:00:03][%mdl 64] Back Rank} Bxf8 {[%emt 0:00:01]} 28. Qf7 {[%emt 0:00:09][%cal Rf7f8]} Bg7 {[%emt 0:00:01]} 29. Qe8+ {[%emt 0:00:05] Black did not feel at home in the position after the opening. Ingenious play by Veinberg!   Weighted Error Value: White=0.00 (flawless) /Black=0.78} 1-0

[Event "Rapid Shavuot-A 2023"]
[Site "Ramat Gan"]
[Date "2023.05.25"]
[Round "5.3"]
[White "Zanan, Evgeny"]
[Black "Rozen, Eytan"]
[Result "1/2-1/2"]
[ECO "A95"]
[WhiteElo "2485"]
[BlackElo "2417"]
[Annotator "TA"]
[PlyCount "191"]
[EventDate "2023.05.19"]
[EventType "swiss"]
[EventCountry "ISR"]
[SourceTitle "playchess.com"]
[Source "ChessBase"]
[SourceQuality "1"]
[TimeControl "900+5"]

{[%evp 17,191,34,34,35,71,48,55,46,32,44,50,31,102,93,112,107,102,115,137,126,125,114,120,110,115,100,168,171,212,136,133,0,0,0,0,0,31,18,177,184,180,179,193,166,154,12,480,477,464,228,228,228,228,228,308,228,306,266,407,341,516,444,580,443,643,598,1843,723,641,366,1529,282,277,158,4133,2595,5462,-497,-497,-497,5454,5454,5454,5454,5454,5454,5454,5454,168,143,5454,5454,5454,5454,5454,5454,5454,5454,5454,5454,5454,5454,5443,5429,5429,5429,5429,5429,5429,5429,5419,5412,5412,5412,5405,5405,5405,5405,5405,5405,5397,5397,5397,0,5397,0,5379,0,5292,5242,5358,12,12,0,5298,5350,5343,5343,5343,234,232,3313,5329,5336,5336,5336,5336,5336,5336,28,28,0,28,28,30,0,30,0,5329,28,5329,28,28,0,28,28,28,28,28,41,41,0,72,-8,-8,-8]} 1. d4 {[%emt 0:00:03]} Nf6 {[%emt 0:00:04]} 2. c4 {[%emt 0:00:03]} e6 {[%emt 0:00:05]} 3. Nf3 {[%emt 0:00:01]} d5 {[%emt 0:00:05]} 4. g3 {[%emt 0:00:26]} Be7 {[%emt 0:00:11]} 5. Bg2 {[%emt 0:00:02]} O-O {[%emt 0:00:03]} 6. Nc3 {[%emt 0:00:02]} c6 {[%emt 0:00:38]} 7. O-O {[%emt 0:00:10]} Ne4 {[%emt 0:00:00]} 8. Qc2 {[%emt 0:00:46]} f5 {[%emt 0:00:02]} 9. Ne5 {[%emt 0:00:10]} Nd7 {[%emt 0:00:04]} 10. Nd3 {[%emt 0:00:12]} dxc4 {[%emt 0:00:31]} 11. Nf4 {[%emt 0:00:17]} Ndf6 $1 {[%emt 0:00:02]} 12. Nxe4 {[%emt 0:00:06]} fxe4 {[%emt 0:00:41]} 13. Qxc4 {[%emt 0:00:06]} Qd6 {[%emt 0:00:03]} 14. e3 {[%emt 0:02:28]} b5 {[%emt 0:01:37]} (14... g5 $14 15. Ne2 b5) 15. Qc2 $16 {[%emt 0:00:23]} e5 {[%emt 0:00:17]} 16. dxe5 {[%emt 0:00:09]} Qxe5 {[%emt 0:00:01]} 17. Bd2 {[%emt 0:00:11]} (17. Qxc6 Bd7 18. Qc3 Qxc3 19. bxc3 Rfd8 $14) 17... Bf5 {[%emt 0:00:51]} 18. Bc3 {[%emt 0:00:12]} Qc5 {[%emt 0:00:03]} 19. Qb3+ {[%emt 0:01:24]} Qc4 {[%emt 0:00:13]} 20. Qxc4+ {[%emt 0:00:27]} bxc4 {[%emt 0:00:01]} 21. Rfc1 {[%emt 0:00:07]} Rfd8 {[%emt 0:01:01]} (21... Nd5 $16) 22. Bf1 $18 {[%emt 0:00:07]} Rd3 {[%emt 0:00:01]} 23. Bxd3 {[%emt 0:02:07]} cxd3 {[%emt 0:00:03]} 24. Bxf6 {[%emt 0:00:48]} ({Better is} 24. h3 $1 $16) 24... Bxf6 $11 {[%emt 0:00:02]} 25. Rxc6 {[%emt 0:00:02]} Bg4 $1 {[%emt 0:00:22]} 26. Nd5 {[%emt 0:03:59]} Bxb2 {[%emt 0:01:44]} 27. Rb1 {[%emt 0:00:01]} Be5 $2 {[%emt 0:00:53]} (27... Ba3 $1 $11 {and Black has nothing to worry.}) 28. h3 {[%emt 0:00:18]} Bf3 {[%emt 0:00:41]} 29. Re6 $1 {[%emt 0:00:17]} Bf6 {[%emt 0:00:02]} 30. Nxf6+ gxf6 {[%emt 0:00:01]} 31. Rxf6 {[%emt 0:00:28]} (31. Rd6 $1 $16 {[%cal Rd6d7]}) 31... h5 $2 {[%emt 0:02:29][%mdl 8192]} (31... Rd8 $1 $11) 32. Rd6 $18 {[%emt 0:01:10]} Rc8 {[%emt 0:01:52]} 33. h4 {[%emt 0:00:04]} (33. Rd7 $142) 33... Rc7 $18 {[%emt 0:00:11]} 34. g4 {[%emt 0:00:11]} Bxg4 {[%emt 0:00:50]} 35. Kg2 {[%emt 0:00:01]} Kg7 {[%emt 0:00:43]} 36. Rb4 {[%emt 0:00:16]} Rf7 {[%emt 0:00:07]} 37. Rbd4 {[%emt 0:00:11]} (37. Rxe4 $2 Bf3+ 38. Kg1 Bxe4 $19) 37... Kh7 {[%emt 0:00:37]} (37... Kf8 $142 38. f4 (38. Rxe4 $2 Bf3+ 39. Kf1 Bxe4 $19) 38... exf3+ 39. Kf2 Rc7 40. Rxd3 Ke7) 38. a4 {[%emt 0:00:04]} (38. Rxe4 $2 Bf3+ 39. Kf1 Bxe4 $19) 38... a5 {[%emt 0:00:26]} (38... Kg8 {was called for.} 39. f4 (39. Rxe4 $2 Bf3+ 40. Kg1 Bxe4 $19) 39... exf3+ 40. Kf2 Rb7 41. Rxd3 Kf7) 39. R4d5 {[%emt 0:00:03]} (39. Rxe4 $2 Bf3+ 40. Kg1 Bxe4 $19) 39... Rg7 {[%emt 0:00:12]} 40. Rg5 {[%emt 0:00:16]} Rxg5 {[%emt 0:00:17]} (40... Ra7 $142 41. Kf1 Bf3) 41. hxg5 $18 {[%emt 0:00:01]} h4 {[%emt 0:00:06]} 42. Kh2 {[%emt 0:00:01]} (42. f3 $142 Bxf3+ 43. Kh3) 42... Kg7 $18 {[%emt 0:00:02]} 43. Rd4 {[%emt 0:00:08]} h3 $2 {[%emt 0:00:07]} (43... Kg6 44. f4 Kf7) 44. Kg3 $2 {[%emt 0:00:13]} (44. Rxe4 d2 45. Rxg4 d1=Q 46. Kxh3 Qf3+ 47. Rg3 Qxf2 $19) (44. f3 Bxf3 45. Kxh3) 44... Kg6 $18 {[%emt 0:00:10]} 45. Rd5 {[%emt 0:00:04]} (45. Kxg4 $2 h2 46. Rd6+ (46. Rxe4 $2 h1=Q $19) 46... Kf7 $19) (45. Rxe4 $2 d2 46. Rxg4 d1=Q $19) (45. f4 $18 Kf7 46. Rd8 (46. Kxg4 $2 h2 $19)) 45... Kg7 $2 {[%emt 0:00:07]} (45... Bd1 $16) 46. f3 $18 {[%emt 0:00:06]} (46. Kxg4 $2 h2 47. Rd7+ (47. Rxa5 $2 {loses.} h1=Q $19) 47... Kg8 48. Rd8+ Kf7 $19) 46... exf3 {[%emt 0:00:08]} 47. Rb5 $4 {[%emt 0:00:13][%mdl 8192]} (47. Kxg4 $2 f2 48. Rxd3 f1=Q $19) (47. Rxd3 $18 {is the narrow road to win.} Bf5 48. Rd4) 47... d2 {[%emt 0:00:05]} 48. Rb1 {[%emt 0:00:02]} (48. Kxg4 d1=Q 49. Kg3 Qg1+ 50. Kf4 h2 51. Rb7+ Kf8 52. Ke5 Qxg5+ 53. Ke6 Qxe3+ 54. Kf5 h1=Q 55. Rb8+ Ke7 56. Rb7+ Kd6) 48... Bd7 $4 {[%emt 0:00:07][%mdl 8192]} (48... Bh5 $19 49. Kxh3 Kg6) 49. Rd1 $18 {[%emt 0:00:05]} (49. Kxf3 Bxa4 50. g6 d1=Q+ 51. Rxd1 Bxd1+ 52. Kf2 a4 53. Kg3 a3 54. Kxh3 a2 55. Kg3 a1=Q 56. Kf2 Qb2+ 57. Kg3 Qf6 58. Kh3 Qf3+ 59. Kh2 Qg4 60. e4 Bf3 61. e5 Qg2#) 49... Bxa4 {[%emt 0:00:06]} 50. Rxd2 {[%emt 0:00:01]} Kg6 {[%emt 0:00:02]} 51. Kxh3 {[%emt 0:00:11]} Kxg5 {[%emt 0:00:07]} 52. Rd5+ {[%emt 0:00:02]} Kf6 {[%emt 0:00:03]} 53. Rxa5 {[%emt 0:00:06]} Bd1 $2 {[%emt 0:00:02][%mdl 8192]} (53... Bc2 $16 54. Kg3 Be4) 54. Kg3 $18 {[%emt 0:00:01]} Be2 {[%emt 0:00:02]} 55. Rc5 {[%emt 0:00:08]} Ke6 {[%emt 0:00:02]} 56. Kf2 {[%emt 0:00:02]} Kd6 {[%emt 0:00:06]} 57. Ra5 {[%emt 0:00:02]} Ke6 {[%emt 0:00:02]} 58. e4 {[%emt 0:00:01]} Kd6 {[%emt 0:00:03]} 59. Ke3 {[%emt 0:00:01]} Ke6 {[%emt 0:00:01]} 60. Rf5 {[%emt 0:00:02]} Kd6 {[%emt 0:00:07]} 61. Kd4 {[%emt 0:00:01]} Ke6 {[%emt 0:00:01]} 62. Rf4 {[%emt 0:00:01]} Kd6 {[%emt 0:00:07]} 63. e5+ {[%emt 0:00:02]} Ke6 {[%emt 0:00:01]} 64. Rf6+ {[%emt 0:00:01]} Ke7 {[%emt 0:00:01]} 65. Kd5 {[%emt 0:00:24]} Bd1 {[%emt 0:00:03]} 66. Ke4 {[%emt 0:00:08]} Be2 {[%emt 0:00:07]} 67. Ke3 {[%emt 0:00:05]} Bd1 {[%emt 0:00:05]} 68. Kf2 {[%emt 0:00:10]} Be2 {[%emt 0:00:01]} 69. Rd6 {[%emt 0:00:01]} Kf7 {[%emt 0:00:03]} 70. Rf6+ {[%emt 0:00:08]} Ke7 {[%emt 0:00:01]} 71. Ke3 {[%emt 0:00:06]} Bd1 $1 {[%emt 0:00:03]} 72. Kd4 {[%emt 0:00:05]} Be2 $1 {[%emt 0:00:02]} 73. Kc5 {[%emt 0:00:09]} Bd1 {[%emt 0:00:07]} 74. Rf4 $2 {[%emt 0:00:04]} (74. Kc4 $18 Ba4 75. Rxf3) 74... Ke6 $11 {[%emt 0:00:05]} 75. Kd4 $2 {[%emt 0:00:05][%mdl 8192]} (75. Rf8 $11 Kxe5 76. Kc4) 75... Be2 $18 {[%emt 0:00:01]} 76. Ke4 {[%emt 0:00:08]} Bd1 {[%emt 0:00:13]} 77. Rh4 {[%emt 0:00:03]} Bc2+ {[%emt 0:00:21]} 78. Kd4 $1 {[%emt 0:00:02]} Bd1 {[%emt 0:00:01]} 79. Rh6+ {[%emt 0:00:07]} Ke7 {[%emt 0:00:05]} 80. Kd5 {[%emt 0:00:04]} Bb3+ {[%emt 0:00:09]} 81. Ke4 {[%emt 0:00:03]} Bd1 {[%emt 0:00:02]} 82. Ke3 {[%emt 0:00:12]} Be2 {[%emt 0:00:02]} 83. Rd6 $2 {[%emt 0:00:02]} (83. Rc6 $18 Bd1 84. Rh6) 83... Kf7 {[%emt 0:00:02]} 84. Ke4 {[%emt 0:00:04]} Ke7 {[%emt 0:00:04]} 85. Rf6 {[%emt 0:00:07]} Bd1 {[%emt 0:00:03]} 86. Kd4 {[%emt 0:00:06]} Be2 $1 {[%emt 0:00:16]} 87. Kd5 $2 {[%emt 0:00:05][%mdl 8192]} (87. Kc3 $11 Bd1 88. Kd4) 87... Bd1 $1 $18 {[%emt 0:00:03]} 88. Rf4 $2 {[%emt 0:00:02]} (88. Re6+ $18 Kd7 89. Rh6 Bb3+ 90. Ke4) 88... Bb3+ $1 $11 {[%emt 0:00:11] [#]} 89. Kd4 $2 {[%emt 0:00:07]} ({Only move:} 89. Kc5 $1 $18 Bd1 90. Rf6) 89... Bd1 $1 $11 {[%emt 0:00:02]} 90. Rh4 {[%emt 0:00:06]} Be2 {[%emt 0:00:05]} 91. Rh7+ {[%emt 0:00:05]} Ke6 {[%emt 0:00:00]} 92. Rh6+ {[%emt 0:00:04]} Ke7 {[%emt 0:00:01]} 93. Rf6 {[%emt 0:00:07]} Bd1 $1 {[%emt 0:00:03]} 94. Ke4 {[%emt 0:00:04]} Be2 {[%emt 0:00:04] [#]} 95. Rd6 {[%emt 0:00:04]} ({White should try} 95. Rf4 $1 $16 {Ke3 would be deadly.} Ke6 96. Rf8) 95... f2 $11 {[%emt 0:00:06]} 96. Rf6 {[%emt 0:00:01]} 1/2-1/2

[Event "Rapid Shavuot-A 2023"]
[Site "Ramat Gan"]
[Date "2023.05.25"]
[Round "5.4"]
[White "Ehrlich, Roy"]
[Black "Zemach, Roee"]
[Result "0-1"]
[ECO "C44"]
[WhiteElo "2228"]
[BlackElo "2261"]
[Annotator "NA RC"]
[PlyCount "108"]
[EventDate "2023.05.19"]
[EventType "swiss"]
[EventCountry "ISR"]
[SourceTitle "playchess.com"]
[Source "ChessBase"]
[SourceQuality "1"]
[TimeControl "900+5"]

1. e4 {[%emt 0:00:01]} e5 {[%emt 0:00:03]} 2. Nf3 {[%emt 0:00:01]} Nc6 {[%emt 0:00:03]} 3. d4 {[%emt 0:00:01]} exd4 {[%emt 0:00:05]} 4. c3 {[%emt 0:00:01]} d5 {[%emt 0:00:16]} 5. exd5 {[%emt 0:00:03]} Qxd5 {[%emt 0:00:02]} 6. cxd4 {[%emt 0:00:01]} Bg4 {[%emt 0:00:07]} 7. Be3 {[%emt 0:01:18]} Bxf3 {[%emt 0:01:05]} 8. gxf3 {[%emt 0:00:03]} Nf6 {[%emt 0:00:23]} 9. Nc3 {[%emt 0:00:02]} Bb4 {[%emt 0:00:02]} 10. a3 {[%emt 0:00:08]} Bxc3+ {[%emt 0:00:05]} 11. bxc3 {[%emt 0:00:01]} O-O-O {[%emt 0:01:25]} 12. Rg1 {[%emt 0:00:11]} g6 {[%emt 0:00:12]} 13. Rg5 {[%emt 0:00:20]} Qe6 {[%emt 0:00:38]} 14. Rb1 {[%emt 0:01:41]} Nd5 {[%emt 0:01:08]} 15. Bc4 {[%emt 0:00:05]} Na5 {[%emt 0:01:18]} 16. Ba2 {[%emt 0:02:12]} Qc6 {[%emt 0:00:58]} 17. Bxd5 {[%emt 0:03:21]} Rxd5 {[%emt 0:00:02]} 18. Rxd5 {[%emt 0:00:17]} Qxd5 {[%emt 0:00:02]} 19. Qe2 {[%emt 0:00:50]} Nc4 {[%emt 0:00:55]} 20. Rb4 {[%emt 0:00:30]} b5 {[%emt 0:00:04]} 21. a4 {[%emt 0:00:04]} a6 {[%emt 0:00:06]} 22. axb5 {[%emt 0:00:14]} axb5 {[%emt 0:00:02]} 23. Qa2 {[%emt 0:01:31]} Kb7 {[%emt 0:00:04]} 24. Qe2 {[%emt 0:00:38]} Re8 {[%emt 0:00:29]} 25. Kf1 {[%emt 0:00:41]} f5 {[%emt 0:00:58]} 26. Qe1 {[%emt 0:01:35]} c6 {[%emt 0:01:17]} 27. f4 {[%emt 0:00:42]} Nxe3+ 28. fxe3 {[%emt 0:00:01]} Qh1+ {[%emt 0:01:12]} 29. Kf2 {[%emt 0:00:02]} Qxh2+ {[%emt 0:00:02]} 30. Kf3 {[%emt 0:00:02]} Qh3+ {[%emt 0:00:11]} 31. Kf2 {[%emt 0:00:05]} Qh4+ {[%emt 0:00:01]} 32. Kf1 {[%emt 0:00:01]} Qxe1+ 33. Kxe1 {[%emt 0:00:01]} Rxe3+ {[%emt 0:00:06]} 34. Kd2 {[%emt 0:00:03]} Re4 {[%emt 0:00:02]} 35. Rb1 {[%emt 0:00:26]} Rxf4 {[%emt 0:00:05]} 36. d5 {[%emt 0:00:01]} cxd5 {[%emt 0:00:12]} 37. Rxb5+ {[%emt 0:00:01]} Kc6 {[%emt 0:00:02]} 38. Rb8 {[%emt 0:00:02]} h5 {[%emt 0:00:17]} 39. Ke3 {[%emt 0:00:10]} Rg4 {[%emt 0:00:04]} 40. Rc8+ {[%emt 0:00:07]} Kd7 {[%emt 0:00:05]} 41. Rh8 {[%emt 0:00:07]} h4 {[%emt 0:00:03]} 42. Kd3 {[%emt 0:00:11]} Ke7 {[%emt 0:00:08]} 43. Ke3 {[%emt 0:00:03]} Kf6 {[%emt 0:00:11]} 44. Rd8 {[%emt 0:00:02]} Ke6 {[%emt 0:00:42]} 45. Re8+ {[%emt 0:00:02]} Kd7 {[%emt 0:00:03]} 46. Rh8 {[%emt 0:00:02]} g5 {[%emt 0:00:02]} 47. Rf8 {[%emt 0:00:05]} Re4+ {[%emt 0:00:21]} 48. Kd3 {[%emt 0:00:03]} Ke6 {[%emt 0:00:04]} 49. Re8+ {[%emt 0:00:03]} Kd6 {[%emt 0:00:04]} 50. Rf8 {[%emt 0:00:06]} Ke5 {[%emt 0:00:02]} 51. Re8+ {[%emt 0:00:06]} Kf4 {[%emt 0:00:02]} 52. Rd8 {[%emt 0:00:01]} h3 {[%emt 0:00:01]} 53. Rd7 {[%emt 0:00:08]} h2 {[%emt 0:00:04]} 54. Rh7 {[%emt 0:00:01]} Kg3 {[%emt 0:03:40]} 0-1

[Event "Rapid Shavuot-A 2023"]
[Site "Ramat Gan"]
[Date "2023.05.25"]
[Round "5.5"]
[White "Parkhov, Yair"]
[Black "Levitan, Tal"]
[Result "1-0"]
[ECO "E17"]
[WhiteElo "2505"]
[BlackElo "2328"]
[Annotator "TA"]
[PlyCount "77"]
[EventDate "2023.05.19"]
[EventType "swiss"]
[EventCountry "ISR"]
[SourceTitle "playchess.com"]
[Source "ChessBase"]
[SourceQuality "1"]
[TimeControl "900+5"]

{[%evp 22,77,48,22,29,12,8,0,10,0,8,8,11,0,14,-26,-19,-17,23,45,41,15,60,55,55,21,58,16,8,8,48,54,56,56,59,50,52,50,53,63,159,155,183,172,176,145,219,219,226,204,1202,1067,925,875,2322,2240,29986,29987]} 1. Nf3 {[%emt 0:00:04]} d5 {[%emt 0:00:03]} 2. c4 {[%emt 0:00:01]} e6 {[%emt 0:00:05]} 3. e3 {[%emt 0:00:10]} Nf6 {[%emt 0:00:11]} 4. b3 {[%emt 0:00:02]} Be7 {[%emt 0:00:03]} 5. Bb2 {[%emt 0:00:02]} O-O {[%emt 0:00:02]} 6. Nc3 {[%emt 0:00:02]} b6 {[%emt 0:00:19]} 7. cxd5 {[%emt 0:00:08]} exd5 {[%emt 0:00:02]} 8. g3 {[%emt 0:00:06]} Bb7 {[%emt 0:00:06]} 9. Bg2 {[%emt 0:00:02]} c5 {[%emt 0:00:04]} 10. d4 {[%emt 0:00:06]} Nbd7 {[%emt 0:00:37]} 11. O-O {[%emt 0:00:03]} Rc8 {[%emt 0:00:19]} 12. Rc1 {[%emt 0:00:02]} Ne4 {[%emt 0:00:07] [#] E17: Queen's Indian: 4 g3 Bb7 5 Bg2 Be7.} 13. Ne2 $146 {[%emt 0:01:33]} ({Predecessor:} 13. Qe2 Ndf6 14. Rfd1 Qc7 15. Ne5 Nxc3 16. Bxc3 Qb8 17. Bb2 h6 18. Nd3 Ba6 19. Qe1 c4 20. Nf4 cxb3 21. axb3 {1-0 Ianov,V (2279)-Karacsonyi,G (2348) Titled Tuesday intern op 21st Dec blitz 2021 (6)}) 13... Ba6 {[%emt 0:01:14]} 14. Re1 {[%emt 0:00:49]} c4 {[%emt 0:00:05] The position is equal.} 15. bxc4 {[%emt 0:00:15]} Rxc4 {[%emt 0:00:43]} 16. Rxc4 Bxc4 {[%emt 0:00:01]} 17. a3 {[%emt 0:00:33] Against Bb4} Bd6 {[%emt 0:00:39]} 18. Nd2 {[%emt 0:00:10]} Nxd2 {[%emt 0:00:21]} 19. Qxd2 {[%emt 0:00:01]} Qe7 {[%emt 0:00:01]} 20. Nc3 {[%emt 0:00:21]} Nf6 {[%emt 0:00:06]} 21. e4 {[%emt 0:01:29][%cal Be3e4,Be4e5][%mdl 32]} Bxa3 {[%emt 0:03:49]} 22. e5 {[%emt 0:00:47]} (22. Nxd5 Nxd5 23. exd5 Qb4 $11) (22. exd5 Qb4 23. Bxa3 Qxa3 $15) 22... Ne4 {[%emt 0:00:10]} 23. Nxe4 {[%emt 0:00:18][%cal Oe4f6] aiming for Nf6+!} (23. Bxa3 $5 Qxa3 24. Nxe4 dxe4 25. Bxe4 $14) 23... dxe4 {[%emt 0:00:58]} 24. Bxe4 {[%emt 0:00:14]} Bxb2 {[%emt 0:00:10]} 25. Qxb2 {[%emt 0:00:02]} Rd8 {[%emt 0:00:24] [#]} 26. Bxh7+ $1 {[%emt 0:00:14][%mdl 64] Decoy} Kxh7 {[%emt 0:00:08]} 27. Qc2+ {[%emt 0:00:02]} Kg8 {[%emt 0:00:51]} 28. Qxc4 $14 {[%emt 0:00:02][%mdl 4096] Endgame KQR-KQR} Qd7 {[%emt 0:00:11] Wards off d5} 29. Rd1 {[%emt 0:00:53] Threatens to win with d5.} b5 {[%emt 0:00:04]} 30. Qc5 {[%emt 0:00:15] d5 would be deadly.} a5 {[%emt 0:01:41]} (30... Rc8 $14 31. Qa3 Re8) 31. d5 $16 {[%emt 0:00:07][%cal Bd4d5,Bd5d6][%mdl 32] White is more active.} a4 {[%emt 0:00:01]} 32. d6 {[%emt 0:01:20]} Rc8 {[%emt 0:00:04]} 33. Qa3 {[%emt 0:00:25]} Qg4 {[%emt 0:01:08] [#]} (33... Rc2 $16 {is a better defense.} 34. Rd4 Qf5) 34. Rc1 $1 $18 {[%emt 0:00:55]} Ra8 {[%emt 0:01:49]} 35. Qd3 {[%emt 0:01:35]} Qg5 $2 {[%emt 0:01:13]} (35... Qe6 36. Qxb5 a3) 36. f4 {[%emt 0:00:14]} Qd8 {[%emt 0:00:01]} 37. Qd5 {[%emt 0:00:46][%cal Oe5e6] Black must now prevent e6!} ({Less strong is} 37. Qxb5 a3 38. Qc5 a2 $18) 37... a3 {[%emt 0:00:11]} 38. d7 {[%emt 0:02:01][%cal Od5a8] Qxa8! would kill now.} ({Weaker is} 38. Qxb5 a2 39. Qb2 Qa5 $11) 38... a2 {[%emt 0:00:05] [#]} 39. Qxa8 $3 {[%emt 0:00:09][%mdl 576] Remove Defender, Promotion.   Weighted Error Value: White=0.11 (very precise) /Black=0.37} 1-0